Cogmind - Beta 16 @@@ ROGUE MODE // 2026.02.06 @ 00:24:42 Player: Megaknight51 Result: Destroyed by H-77 Assassin with Coil Gun Performance ------------- Evolutions (6) 3000 Regions Visited (7) 1400 Robots Destroyed (18) 90 Value Destroyed (629) 629 Prototype IDs (2) 40 Alien Tech Used (0) 0 Bonus (902) 902 TOTAL SCORE: 6061 Bonus ------- Follower Combat Kills 102 Registered with UFD 300 Met Optimus in HQ 500 Cogmind --------- Core Integrity 0/1150 Matter 117/300 Energy 100/100 System Corruption 10% Temperature Cool (0) Movement Core (50) Location -4/Factory Parts ------- > --- POWER (3) -------- (None) > --- PROPULSION (4) --- (None) > --- UTILITY (10) ----- (None) > --- WEAPON (2) ------- (None) > --- INVENTORY (5) ---- Improved Sensor Array Makeshift ECM Suite Advanced Drone Bay (2/2) Peak State ------------ > --- POWER ------------ Antimatter Reactor > --- PROPULSION ------- Centrium Wheel VTOL Module VTOL Module Cooled Field Propulsion Drive > --- UTILITY ---------- Improved Trap Scanner Advanced Terrain Scanner 0b10 Decoder Chip [Scout] Transmission Jammer Makeshift Hacking Suite Makeshift System Shield > --- WEAPON ----------- Power Maul > --- INVENTORY -------- Improved Sensor Array Makeshift ECM Suite Advanced Drone Bay [Rating: 58] Favorites ----------- Power Light Ion Engine Engine Light Ion Engine Power Core Light Fission Core Reactor Antimatter Reactor Propulsion Light Treads Treads Light Treads Wheel Centrium Wheel Flight Unit VTOL Module Utility Seismic Detector Device Seismic Detector Storage Small Storage Unit Processor 0b10 Decoder Chip [Scout] Hackware Makeshift Hacking Suite Weapon Assault Rifle Ballistic Gun Assault Rifle Ballistic Cannon Light Cannon Impact Weapon Power Maul Build | -11 -10 -10 -7 -5 -5 -5 -4 ------- Run | Yrd Mat Sub Scr Fac Upp Upp Fac Slots Evolved 12 | . . . . 10 . . 2 Power 2 | . . . . 2 . . . Propulsion 2 | . . . . 2 . . . Utility 8 | . . . . 6 . . 2 Weapon . | . . . . . . . . Parts Attached 35 | 7 . . 2 11 4 . 11 Power 5 | 1 . . . 2 . . 2 Engine 1 | 1 . . . . . . . Core 2 | . . . . 2 . . . Reactor 2 | . . . . . . . 2 Propulsion 8 | 2 . . . 2 . . 4 Treads 3 | 2 . . . 1 . . . Leg . | . . . . . . . . Wheel 1 | . . . . . . . 1 Hover . | . . . . . . . . Flight 4 | . . . . 1 . . 3 Utility 16 | 2 . . 1 6 4 . 3 Device 10 | 1 . . . 5 1 . 3 Storage 2 | 1 . . 1 . . . . Processor 2 | . . . . 1 1 . . Hackware 2 | . . . . . 2 . . Protection . | . . . . . . . . Artifact . | . . . . . . . . Weapon 6 | 2 . . 1 1 . . 2 Energy Gun . | . . . . . . . . Energy Cannon . | . . . . . . . . Ballistic Gun 4 | 2 . . . 1 . . 1 Ballistic Cannon 1 | . . . 1 . . . . Launcher . | . . . . . . . . Special Weapon . | . . . . . . . . Impact Weapon 1 | . . . . . . . 1 Slashing Weapon . | . . . . . . . . Piercing Weapon . | . . . . . . . . Special Melee Weapon . | . . . . . . . . Unidentified Prototypes 2 | . . . . 1 . . 1 Parts Lost 17 | . . . . 8 . . 9 Power 4 | . . . . 2 . . 2 Propulsion 4 | . . . . 1 . . 3 Utility 6 | . . . . 3 . . 3 Weapon 3 | . . . . 2 . . 1 Highest Loss Streak 8 | . . . . 4 . . 8 To Critical Strikes . | . . . . . . . . Average Backups 5 | 1 3 3 6 4 3 4 3 Power . | . 1 1 1 . . . . Propulsion . | . . . . . . . . Utility 2 | . 1 1 2 1 2 3 3 Weapon 1 | . 1 1 1 1 1 1 . Tool/Special . | . . . . . . . . Unused Backups 3 | . . . 1 . . . 2 Power 1 | . . . 1 . . . . Propulsion . | . . . . . . . . Utility 2 | . . . . . . . 2 Weapon . | . . . . . . . . Tool/Special . | . . . . . . . . Average Slot Usage (%) 77 | . 100 100 100 54 16 17 38 Engine 9 | . 14 14 14 3 . . . Treads 19 | . 28 28 28 11 . . . Device 12 | . 14 14 14 17 . . 8 Storage 9 | . 14 14 14 4 . . . Processor 1 | . . . . 2 4 5 4 Hackware 1 | . . . . . 10 11 9 Ballistic Gun 12 | . 28 28 17 4 . . . Ballistic Cannon 6 | . . . 10 3 . . . Peak Build Rating 58 | 7 7 7 10 46 18 15 58 Average Rating 15 | 5 7 7 8 27 14 15 36 On Entrance 7 | . 7 7 7 10 2 15 15 Avg Prop Armor Cover (%) 13 | . . . . . . . 13 Naked Turns 57 | . . . . 19 10 . 28 Heaviest Build 33 | 12 12 12 19 33 8 . 24 Greatest Support 67 | 40 40 40 40 67 3 3 16 Greatest Overweight (x) 4 | . . . . . 2 . 4 Average Overweight (x) . | . . . . . . . . Largest Inventory Capacity 10 | 8 8 8 10 10 5 5 5 Average Capacity 7 | 7 8 8 8 9 5 5 5 Most Carried 9 | 3 3 3 9 9 5 5 5 Average Carried 5 | 1 3 3 7 4 4 5 4 Final Capacity 10 | 8 8 8 10 5 5 5 5 Final Carried 9 | 3 3 3 9 5 5 5 4 Scrap Suit Usage (%) 12 | . . . . 67 . . . Class Distribution -------------------- 74% | Mutant 17% | Hacker-Mutant 8% | Infiltrator-Mutant Dominant Class ---------------- Mutant | -10/Materials Mutant | -10/Subcaves Mutant | -7/Scraptown Mutant | -5/Factory Hacker-Mutant | -5/Upper Caves Hacker-Mutant | -5/Upper Caves Hacker-Mutant | -4/Factory Resources | -11 -10 -10 -7 -5 -5 -5 -4 ----------- Run | Yrd Mat Sub Scr Fac Upp Upp Fac Matter Collected 524 | 128 102 34 48 30 123 . 59 Remotely . | . . . . . . . . Salvage Created 440 | 163 . . . 158 . . 119 Parts 18 | 11 . . . 3 . . 4 Haulers Intercepted . | . . . . . . . . Recyclers Shooed . | . . . . . . . . Parts Field Recycled . | . . . . . . . . Retrieved Matter . | . . . . . . . . Parts Self-Destructed 10 | . . 1 . . 9 . . Prevented . | . . . . . . . . Parts Restored . | . . . . . . . . Kills | -11 -10 -10 -7 -5 -5 -5 -4 ------- Run | Yrd Mat Sub Scr Fac Upp Upp Fac Combat Hostiles Destroyed 12 | . . . . 7 . . 5 Melee 2 | . . . . . . . 2 Guns 3 | . . . . 3 . . . Cannons 4 | . . . . 4 . . . Classes Destroyed 7 | 2 . . . 3 . . 2 Worker 1 | . . . . 1 . . . Builder 1 | . . . . . . . 1 Tunneler 3 | 3 . . . . . . . Recycler 1 | 1 . . . . . . . Swarmer 8 | . . . . 4 . . 4 Grunt 3 | . . . . 3 . . . Programmer 1 | . . . . . . . 1 Best Kill Streak 4 | 4 . . . 4 . . 4 Combat Bots Only 4 | . . . . 2 . . 4 Max Kills in Single Turn 1 | 1 . . . 1 . . 1 Gunslinging . | . . . . . . . . Exploded . | . . . . . . . . Melee 1 | . . . . . . . 1 Uniques/NPCs Destroyed . | . . . . . . . . Combat | -11 -10 -10 -7 -5 -5 -5 -4 -------- Run | Yrd Mat Sub Scr Fac Upp Upp Fac Hostile Shots Fired 329 | . . . . 167 18 . 144 Missed 109 | . . . . 56 7 . 46 Hits 220 | . . . . 111 11 . 98 Melee 1 | . . . . . 1 . . Projectile 219 | . . . . 111 10 . 98 Critical Strikes 6 | . . . . 3 . . 3 Damage Taken 4134 | . . . . 2026 222 . 1886 Core 2043 | . . . . 664 222 . 1157 Absorbed by Shields . | . . . . . . . . Core Remaining (%) 70 | 100 . . 100 . . 11 . Volleys Fired 46 | 8 . . . 38 . . . Largest 2 | 2 . . . 2 . . . Hottest 50 | 40 . . . 50 . . . Shots Fired 83 | 16 . . . 67 . . . Gun 54 | 16 . . . 38 . . . Cannon 29 | . . . . 29 . . . Launcher . | . . . . . . . . Special . | . . . . . . . . Kinetic 83 | 16 . . . 67 . . . Thermal . | . . . . . . . . Explosive . | . . . . . . . . Electromagnetic . | . . . . . . . . Robot Hit Streak 10 | 8 . . . 10 . . . Robot Miss Streak 4 | 2 . . . 4 . . . Penetration Max . | . . . . . . . . Secondary Targets . | . . . . . . . . Shots Hit Robots 77 | 11 . . . 45 . . 21 Core Hits 29 | 7 . . . 21 . . 1 Critical Kills 1 | . . . . . . . 1 Critical Parts Destroyed 7 | . . . . . . . 7 Critical Strikes 8 | . . . . . . . 8 Smash 8 | . . . . . . . 8 Melee Attacks 26 | . . . . . . . 26 Impact 26 | . . . . . . . 26 Slashing . | . . . . . . . . Piercing . | . . . . . . . . Sneak Attacks 1 | . . . . . . . 1 Combat Hostiles . | . . . . . . . . Follow-up Attacks . | . . . . . . . . Damage Inflicted 2335 | 132 . . . 1035 . . 1168 Guns 414 | 132 . . . 282 . . . Cannons 386 | . . . . 386 . . . Explosions 367 | . . . . 367 . . . Melee 1161 | . . . . . . . 1161 Ramming 7 | . . . . . . . 7 Kinetic 800 | 132 . . . 668 . . . Thermal 367 | . . . . 367 . . . Explosive . | . . . . . . . . Electromagnetic . | . . . . . . . . Impact 1161 | . . . . . . . 1161 Slashing . | . . . . . . . . Piercing . | . . . . . . . . Highest Corruption 10 | . . . . . . . 10 Average Corruption 6 | . . . . . . . 6 Corruption Purged . | . . . . . . . . Corruption Blocked . | . . . . . . . . Effects 1 | . . . . . . . 1 Matter Fused 1 | . . . . . . . 1 Overload Shots . | . . . . . . . . Overflow Damage 771 | . . . . 122 . . 649 Projectiles 9 | . . . . 9 . . . Explosions 113 | . . . . 113 . . . Melee 649 | . . . . . . . 649 Knockbacks 15 | . . . . 9 . . 6 Impact 6 | . . . . . . . 6 Kinetic 9 | . . . . 9 . . . Secondary . | . . . . . . . . Self-Inflicted Damage 183 | . . . . 181 . . 2 Shots 2 | . . . . 2 . . . Rammed 5 | . . . . . . . 5 Targets Rammed 5 | . . . . . . . 5 Kicked . | . . . . . . . . Crushed . | . . . . . . . . Highest Temperature 16 | . . . . 16 . . . Average Temperature 7 | . . . . 7 . . . Received Heat Transfer 381 | . . . . 363 18 . . Siege Activations . | . . . . . . . . Martial Activations . | . . . . . . . . Shielding Activations . | . . . . . . . . Robots Disrupted . | . . . . . . . . Combat Hostiles . | . . . . . . . . Robots Corrupted 4 | . . . . . . . 4 Combat Hostiles 3 | . . . . . . . 3 Parts Fried 6 | . . . . . . . 6 Impact Corruptions 21 | . . . . . . . 21 Robots Melted . | . . . . . . . . Combat Hostiles . | . . . . . . . . Parts Melted . | . . . . . . . . Heat Transferred 250 | . . . . 250 . . . Parts Sabotaged . | . . . . . . . . Parts Stolen . | . . . . . . . . Parts Stripped . | . . . . . . . . Power Chain Reactions . | . . . . . . . . Alert | -11 -10 -10 -7 -5 -5 -5 -4 ------- Run | Yrd Mat Sub Scr Fac Upp Upp Fac Maximum Alert Level 2 | . . . . 2 . . . Low Security (%) 81 | 100 100 . . 63 . . 100 Level 1 12 | . . . . 24 . . . Level 2 6 | . . . . 12 . . . Level 3 . | . . . . . . . . Level 4 . | . . . . . . . . Level 5 . | . . . . . . . . High Security . | . . . . . . . . Max Security . | . . . . . . . . Peak Influence 444 | 10 . . . 444 . . 135 Initial 101 | . . . . . . . 101 Average 76 | 2 . . . 126 . . 43 Influence Increases 990 | 20 . . . 622 127 . 221 Destroy 0b10 Robot/C 300 | . . . . 140 60 . 100 Destroy 0b10 Robot/NC 30 | 20 . . . 5 . . 5 Destroy Leader 30 | . . . . 10 . . 20 Allied During Kill 7 | . . . . . 7 . . Successful Hack 21 | . . . . . . . 21 Disable Machine 90 | . . . . 90 . . . Anti-Garrison Action 150 | . . . . 150 . . . Destroy Structure 92 | . . . . 92 . . . Partial Spotted 15 | . . . . 15 . . . Lose Combat Pursuer 255 | . . . . 120 60 . 75 Influence Decreases 986 | 20 . . . 200 347 40 379 Entered New Map 258 | . . . . . 157 40 61 Time Decay 465 | 20 . . . 130 150 . 165 Lost Part 122 | . . . . 70 . . 52 Lost Ally 40 | . . . . . 40 . . Purge Threat 101 | . . . . . . . 101 Squads Dispatched 5 | . 1 . . 3 . . 1 Investigation 1 | . 1 . . . . . . Extermination 2 | . . . . 1 . . 1 Reinforcement . | . . . . . . . . Assault 2 | . . . . 2 . . . Garrison . | . . . . . . . . Intercept . | . . . . . . . . Searches Triggered . | . . . . . . . . Construction Impeded . | . . . . . . . . Haulers Reinforced . | . . . . . . . . Active Scanning Responses . | . . . . . . . . Cargo Convoy Interrupts . | . . . . . . . . Stealth | -11 -10 -10 -7 -5 -5 -5 -4 --------- Run | Yrd Mat Sub Scr Fac Upp Upp Fac Distress Signals 4 | . 2 . . 2 . . . Communications Jammed 1 | . . . . 1 . . . Distress Signals . | . . . . . . . . Times Spotted 43 | . . . . 25 7 . 11 Peak Tracking Total 9 | . . . . 9 7 . 5 Tactical Retreats 6 | . . . . 3 2 . 1 Traps | -11 -10 -10 -7 -5 -5 -5 -4 ------- Run | Yrd Mat Sub Scr Fac Upp Upp Fac Traps Triggered 1 | . . . . 1 . . . Indirectly . | . . . . . . . . Trap Hack Attempts . | . . . . . . . . Triggered . | . . . . . . . . Disarmed . | . . . . . . . . Reprogrammed . | . . . . . . . . Reused . | . . . . . . . . Traps Extracted . | . . . . . . . . Installed . | . . . . . . . . Triggered . | . . . . . . . . Machines | -11 -10 -10 -7 -5 -5 -5 -4 ---------- Run | Yrd Mat Sub Scr Fac Upp Upp Fac Machines Disabled 7 | . . . . 7 . . . Max in Single Turn 4 | . . . . 4 . . . Garrison Access 1 | . . . . 1 . . . Machines Repaired . | . . . . . . . . Machines Dismantled . | . . . . . . . . Machines Sabotaged . | . . . . . . . . Overloaded Fab Kills . | . . . . . . . . Hacking | -11 -10 -10 -7 -5 -5 -5 -4 --------- Run | Yrd Mat Sub Scr Fac Upp Upp Fac Machines Accessed 12 | . 1 . 7 2 . . 2 Terminals 3 | . 1 . . 1 . . 1 Fabricators 1 | . . . . . . . 1 Repair Stations . | . . . . . . . . Recycling Units . | . . . . . . . . Scanalyzers . | . . . . . . . . Garrison Access 1 | . . . . 1 . . . Total Hacks 56 | . 3 . 45 5 . . 3 Successful 48 | . . . 45 1 . . 2 Failed 8 | . 3 . . 4 . . 1 Catastrophic 2 | . . . . 1 . . 1 Database Lockouts . | . . . . . . . . Manual 5 | . 3 . . 2 . . . Terminals 7 | . 3 . . 2 . . 2 Fabricators 1 | . . . . . . . 1 Repair Stations . | . . . . . . . . Recycling Units . | . . . . . . . . Scanalyzers . | . . . . . . . . Garrison Access 3 | . . . . 3 . . . Terminal Hacks 46 | . . . 45 . . . 1 Record 40 | . . . 40 . . . . Robot Analysis 5 | . . . 5 . . . . Unreport Threat 1 | . . . . . . . 1 Fabricator Hacks 1 | . . . . . . . 1 Build 1 | . . . . . . . 1 Repair Station Hacks . | . . . . . . . . Recycling Unit Hacks . | . . . . . . . . Scanalyzer . | . . . . . . . . Garrison Access Hacks . | . . . . . . . . Unauthorized Hacks 1 | . . . . 1 . . . Terminals 1 | . . . . 1 . . . Assimilate 1 | . . . . 1 . . . Fabricators . | . . . . . . . . Repair Stations . | . . . . . . . . Recycling Units . | . . . . . . . . Scanalyzers . | . . . . . . . . Garrison Access . | . . . . . . . . Data Cores Recovered . | . . . . . . . . Used . | . . . . . . . . Hacking Detections 4 | . 1 . . 2 . . 1 Full Trace Events . | . . . . . . . . Feedback Events . | . . . . . . . . Feedback Blocked . | . . . . . . . . Robot Schematics Acquired . | . . . . . . . . Robots Built . | . . . . . . . . Authchips . | . . . . . . . . Time . | . . . . . . . . Total Robot Build Rating . | . . . . . . . . Part Schematics Acquired . | . . . . . . . . Parts Built 2 | . . . . . . . 2 Authchips . | . . . . . . . . Time 42 | . . . . . . . 42 Total Part Build Rating 16 | . . . . . . . 16 Part Studies Acquired . | . . . . . . . . Parts Repaired . | . . . . . . . . Time . | . . . . . . . . Parts Recycled . | . . . . . . . . Recycled Matter . | . . . . . . . . Retrieved Matter . | . . . . . . . . Retrieved Components . | . . . . . . . . Parts Scanalyzed . | . . . . . . . . Part Schematics Acquired . | . . . . . . . . Parts Damaged . | . . . . . . . . Bothacking | -11 -10 -10 -7 -5 -5 -5 -4 ------------ Run | Yrd Mat Sub Scr Fac Upp Upp Fac Used RIF Installer . | . . . . . . . . Robots Hacked . | . . . . . . . . Non-combat . | . . . . . . . . Combat . | . . . . . . . . Robot Hacks Applied . | . . . . . . . . Relay Couplers Released 3 | . . . . 3 . . . Machine Destruction 3 | . . . . 3 . . . Fabnet Peak Effective % . | . . . . . . . . Robots Rewired 2 | . . . . . 2 . . Allies Hacked . | . . . . . . . . Hacks Repelled . | . . . . . . . . Allies | -11 -10 -10 -7 -5 -5 -5 -4 -------- Run | Yrd Mat Sub Scr Fac Upp Upp Fac Total Allies 3 | . . . . 1 2 . . Largest Group 2 | . . . . 1 2 . . Highest-Rated Group 78 | . . . . 10 78 . . Highest-Rated Ally 49 | . . . . 10 49 . . Total Orders . | . . . . . . . . Ally Attacks 11 | . . . . . 11 . . Total Damage 275 | . . . . . 275 . . Kills 3 | . . . . . 3 . . Allies Corrupted . | . . . . . . . . Allies Melted . | . . . . . . . . Intel | -11 -10 -10 -7 -5 -5 -5 -4 ------- Run | Yrd Mat Sub Scr Fac Upp Upp Fac Active Infowar (turns) 4354 | 22 178 261 2320 716 299 14 544 Optics 414 | . . . . 414 . . . Terrain 521 | . . . . 410 . . 111 Traps 494 | . . . . . . . 494 Seismic 3340 | 22 178 261 2320 559 . . . Decoding 857 | . . . . . 299 14 544 Cloaking 363 | . . . . 363 . . . Jamming 703 | . . . . 413 . . 290 ECM 7 | . . . . . 7 . . Robot Analysis Total 5 | . . . 5 . . . . Derelict Logs Recovered 2 | . . . . . 2 . . Drone Launches . | . . . . . . . . Drone Recoveries . | . . . . . . . . Decoded 0b10 Intel 1 | . . . . . . . 1 Traps 1 | . . . . . . . 1 Exploration | -11 -10 -10 -7 -5 -5 -5 -4 ------------- Run | Yrd Mat Sub Scr Fac Upp Upp Fac Turns Passed 4646 | 136 178 261 2320 856 309 14 572 Spaces Moved 3439 | 66 112 154 1420 643 572 28 444 Core 794 | 4 . . . 32 572 28 158 Treads 2066 | 62 112 154 1420 318 . . . Legs . | . . . . . . . . Wheels 285 | . . . . . . . 285 Hover . | . . . . . . . . Flight 294 | . . . . 293 . . 1 Fastest Speed 35 | 50 160 160 160 35 50 50 50 Average Speed 120 | 153 160 160 160 98 50 50 89 Slowest Speed 250 | 160 160 160 160 163 150 50 250 Overloaded Moves . | . . . . . . . . Propulsion Burnouts . | . . . . . . . . Robots Hopped . | . . . . . . . . Potential Cave-ins . | . . . . . . . . Cave-ins Triggered . | . . . . . . . . Exploration Rate (%) 32 | 5 33 21 87 17 80 7 9 Regions Visited 7 Branch Regions 4 Pre-discovered Areas . | . . . . . . . . Known Exits Taken . | . . . . . . . . Unknown Exits Taken 7 | 1 1 1 1 1 1 1 . Scrap Searched 9 | . . . 7 . 2 . . Spaces Dug . | . . . . . . . . Terrain Destroyed 54 | . . . . 54 . . . Melee . | . . . . . . . . Projectile . | . . . . . . . . AOE 54 | . . . . 54 . . . Terrain Rammed . | . . . . . . . . Walls Destroyed . | . . . . . . . . Machines Disabled . | . . . . . . . . Actions | -11 -10 -10 -7 -5 -5 -5 -4 --------- Run | Yrd Mat Sub Scr Fac Upp Upp Fac Total 3813 | 83 111 169 1469 802 589 27 563 Wait 223 | . . 16 31 108 . . 68 Move 3432 | 65 111 153 1419 642 571 27 444 Hop . | . . . . . . . . Pick Up 14 | 3 . . 6 1 2 . 2 Fast Attach 28 | 7 . . . 6 4 . 11 Attach 8 | . . . . 6 . . 2 Detach 2 | . . . . 1 . . 1 Swap 2 | . . . 2 . . . . Drop 9 | . . . 2 . 3 . 4 Fire 46 | 8 . . . 38 . . . Melee 26 | . . . . . . . 26 Ram 5 | . . . . . . . 5 Kick . | . . . . . . . . Crush . | . . . . . . . . Escape Stasis . | . . . . . . . . Rewire 18 | . . . 9 . 9 . . Trap . | . . . . . . . . Miscellaneous . | . . . . . . . . Route ------- -11/Scrapyard -10/Materials (discovered 2 exits: [*Mat] / [*Sub]) -10/Subcaves (discovered 2 exits: [*Mat] / *Scr) -7/Scraptown (discovered 2 exits: *Fac x2) -5/Factory -5/Upper Caves -5/Upper Caves -4/Factory History --------- Turn | Location | Event 13 | -11/Scrapyard | Discovered new exit (range 15) 137 | -11/Scrapyard | Entered Materials 138 | -10/Materials | Met a group of wandering Federalists 291 | -10/Materials | Discovered new exit (range 15) 294 | -10/Materials | Discovered new exit (range 14) 309 | -10/Materials | Build established: Mutant 315 | -10/Materials | Entered Subcaves 316 | -10/Subcaves | Continued accompanying wandering Federalists (3) 316 | -10/Subcaves | Approached by a straggling Scientist 360 | -10/Subcaves | Discovered new exit (range 11) 427 | -10/Subcaves | Shifting Twisted Machinery released Shrapnel Trap 560 | -10/Subcaves | Wandering Federalist uncovered a shortcut to Scraptown 576 | -10/Subcaves | Entered Scraptown 927 | -7/Scraptown | Visited CPS Storage 1029 | -7/Scraptown | Visited Spacefarers 1087 | -7/Scraptown | Visited Bundlers 1248 | -7/Scraptown | Discovered new exit (range 5) 1664 | -7/Scraptown | Visited Assassins FH 1678 | -7/Scraptown | Visited UFD Registry 1678 | -7/Scraptown | Registered with UFD as "Chainninja" 1700 | -7/Scraptown | Visited Cyclists 1718 | -7/Scraptown | Entered Cyclist Reading Room 1771 | -7/Scraptown | Visited Science Testing Area 1851 | -7/Scraptown | Visited Derelict Rescue Squad 1904 | -7/Scraptown | Visited Analyses Database 2011 | -7/Scraptown | Visited Chapter 10 2134 | -7/Scraptown | Visited Scrap Suit Storage 2147 | -7/Scraptown | Found Scrap Suit 2178 | -7/Scraptown | Visited Junk Repository 2248 | -7/Scraptown | Visited Modified Component R&D 2358 | -7/Scraptown | Visited Scrapoid Research Area 2427 | -7/Scraptown | Visited Research Penetration Think Tank 2467 | -7/Scraptown | Visited Observation Area 2789 | -7/Scraptown | Met Optimus 2789 | -7/Scraptown | Accepted into 0bPrime 2890 | -7/Scraptown | Discovered new exit (range 5) 2896 | -7/Scraptown | Entered Factory 2896 | -5/Factory | Evolved 10 slots: Power x2, Propulsion x2, Utility x6 3328 | -5/Factory | Build established: Infiltrator-Mutant 3467 | -5/Factory | Lost 3 parts (2p1u) 3570 | -5/Factory | Lost 4 parts (2u2w) 3612 | -5/Factory | Released all parts (11) 3620 | -5/Factory | Core integrity fell below 50% 3678 | -5/Factory | Discovered new exit (range 7) 3719 | -5/Factory | Build established: Mutant 3752 | -5/Factory | Entered Upper Caves 3753 | -5/Upper Caves | Encountered a Warlord checkpoint 3801 | -5/Upper Caves | Learned Factory interactive machine intel 3802 | -5/Upper Caves | Learned Factory security intel 3943 | -5/Upper Caves | Attracted the attention of an 0b10 outpost 3963 | -5/Upper Caves | Core integrity fell below 20% 4057 | -5/Upper Caves | Discovered new exit (range 9) 4061 | -5/Upper Caves | Entered another Upper Caves area 4072 | -5/Upper Caves | Build established: Hacker-Mutant 4072 | -5/Upper Caves | Discovered new exit (range 5) 4075 | -5/Upper Caves | Entered Factory 4075 | -4/Factory | Evolved 2 slots: Utility x2 4077 | -4/Factory | Loaded intel: 52 interactive machine locations 4219 | -4/Factory | Fabricated Hyp. Railgun (x2) 4619 | -4/Factory | Released all parts (4) 4631 | -4/Factory | Core integrity fell below 50% 4642 | -4/Factory | Core integrity fell below 20% 4644 | -4/Factory | Lost 8 parts (1p3n3u1w) 4647 | -4/Factory | System corruption reached 10% 4647 | -4/Factory | Destroyed by H-77 Assassin with Coil Gun Last Messages --------------- 04634_ Acquired 28 matter. 04634_ Penetrated by Slug. 04634_ Slug penetrates Wall. 04634_ K-01 Serf collects debris. 04636_ R-10 Processor collects Transmission Jammer. 04636_ U-05 Engineer destroyed. 04636_ Door malfunctions. 04638_ Slug penetrates Wall. 04638_ Penetrated by Slug. 04639_ K-01 Serf collects debris. 04641_ Penetrated by Slug. 04641_ Slug penetrates Wall. 04641_ Penetrated by Slug. 04641_ Slug penetrates Wall. 04644_ Penetrated by Slug. 04644_ Slug penetrates Wall. 04644_ Slug penetrates P-70 Sage. 04644_ Penetrated by Slug. 04645_ K-01 Serf collects debris. 04647_ R-10 Processor collects Lgt. Ion Engine. Map ----- +----------------------------------------------------+ | ?????????????????????????????????????????????????? | | ?????????????????????????????????????????????????? | | ?????????????????????????????????????????????????? | | ?????????????????????????????????????????????????? | | ?????????????????????????????????????????????????? | | ????????????????????????????????""???????????????? | | ????????????????????????????????""???????????????? | | ????????????????????????????????"Y???????????????? | | ???????""???????????????????????""???????????????? | | ???????""???????????????????????""???????????????? | | ???????T"???????????????? ?????????????????????? | | ???????""???????????????? ???????????????????? | | ???????""???????????????? R#??????????????????? | | ????????????????????????? #??????????????????? | | ????????????????????????? #??????????????????? | | ????????????????????????? #??????????????????? | | ????????????????????????? #??????????????????? | | ????????????????????????# #??????????????????? | | ????????????????????????# #??????????????????? | | ????????????????????????# #??????????????????? | | ????????????????????????# #??????????????????? | | ????????????????????????# p +??????????????????? | | ??????????????????##????# p#??????????????????? | | ?????????????????? ???# #??????????????????? | | ?????????##??????? ???# #??????????????????? | | ??????????????????? ??#@ #??????????????????? | | ???????????????????""""?# #??????????????????? | | ?????????????????? """" # #??????????????????? | | ?????????######### """" # ###????????????????? | | ?????????# # """" / T#?????????????????? | | ?????????# # """" # ##????????????????? | | ?????????# # """" # |%=##??????#??????????? | | ????????## #?""""?# * #??????????????????? | | ?????????# #? ??# u #??????????????????? | | #?????#??# # !???# k #?#????????????????? | | ?????????# # ???# h #??????????????????? | | ########## ###??#?# #??????????????????? | | # # #??????# #??#???????????????? | | # !!= # /#??????#h=p #??????????????????? | | # !!= #! ########! #?#?#??????#???????? | | # !! # # R #?????????????#????? | | # # # #???????#??????????? | | # """ # #^ ##?????????????????? | | # """"" # ! + #??#???????????????? | | # """"" # # #????#????#???##???? | | # # # ###/##########?????????#??? | | #####+############ #% #????????????? | | # ! #????????????? | | # #????????????? | | # === #????????????? | +----------------------------------------------------+ Best States ------------- Heat Dissipation 43 Energy Generation 23 Energy Capacity 325 Matter Stores 300 Matter Capacity 300 Sight Range 22 Terrain Scan Range 20 Terrain Scan Density 10 ECM Strength 2 Jamming Range 14 Cloak Strength 2 Evasion (%) 63 Recoil Reduction 3 Energy Filtering 50 Offensive Hacking 11 Defensive Hacking 11 Item Schematics ----------------- None Robot Schematics ------------------ None Fabricated ------------ Hyp. Railgun | x2 | -4/Factory | Preloaded Repaired ---------- Nothing Studied --------- None Alien Tech Used ----------------- None Achievements -------------- Bob, First Of His Name Challenges ------------ None Game ------ Seed ArcsightBiocellCalibrator Manual? 0 Play Time 00:26:42 Cumulative 55.4 hours Start 2026.02.05 @ 23:58:54 End 2026.02.06 @ 00:24:42 Sessions 1 Manual Loads 0 Difficulty Rogue Special Mode None Game No. 107 Rogue 107 Adventurer 0 Explorer 0 Win Type - Total 0 Types 0/0/0/0/0/0/0/0/0/0 Lore% 34 Gallery% 30 Achievement% 27 Wizard Run 0 Options --------- Layout 0 ASCII 0 Keyboard 1 Movement Arrows Keybinds 0 Fullscreen 1 Font 18/Smallcaps Map View 76x50 Zoom Use 63% Tactical HUD 1 Map Filters NONE Filters NONE Steam 1 RUN: 70a3f255-2402-40ad-b944-b0cecb3b254f